[Event "Titled Tuesday Blitz December 13 Early 2022"]
[White "Santos Flores, Alberto"]
[Black "Grandelius, Nils"]
[WhiteFideId "3601234"]
[BlackFideId "1710400"]
[WhiteElo "2235"]
[BlackElo "2617"]
[Result "0-1"]
[Round "03"]
[TimeControl "180+1"]
[Date "2022.12.14"]
[WhiteClock "0:00:22"]
[BlackClock "0:01:26"]

1. d4 {[%clk 0:03:00]}  Nf6 {[%clk 0:02:55]} 2. Nf3 {[%clk 0:03:00]}  b6 {[%clk 0:02:55]} 3. Bf4 {[%clk 0:02:58]}  Bb7 {[%clk 0:02:54]} 4. e3 {[%clk 0:02:59]}  g6 {[%clk 0:02:54]} 5. Nbd2 {[%clk 0:02:55]}  Bg7 {[%clk 0:02:54]} 6. Be2 {[%clk 0:02:52]}  O-O {[%clk 0:02:55]} 7. O-O {[%clk 0:02:52]}  d6 {[%clk 0:02:55]} 8. h3 {[%clk 0:02:49]}  Nbd7 {[%clk 0:02:49]} 9. c3 {[%clk 0:02:48]}  Qe8 {[%clk 0:02:45]} 10. Bh2 {[%clk 0:02:46]}  e5 {[%clk 0:02:46]} 11. dxe5 {[%clk 0:02:34]}  dxe5 {[%clk 0:02:46]} 12. Nc4 {[%clk 0:02:34]}  Ne4 {[%clk 0:02:44]} 13. Nfd2 {[%clk 0:02:33]}  Ng5 {[%clk 0:02:35]} 14. Nf3 {[%clk 0:02:19]}  Ne4 {[%clk 0:02:34]} 15. Nfd2 {[%clk 0:02:18]}  Nec5 {[%clk 0:02:34]} 16. Qc2 {[%clk 0:02:03]}  Rd8 {[%clk 0:02:33]} 17. Bf3 {[%clk 0:02:00]}  Bxf3 {[%clk 0:02:21]} 18. Nxf3 {[%clk 0:02:01]}  Qe6 {[%clk 0:02:19]} 19. Qe2 {[%clk 0:01:42]}  f6 {[%clk 0:02:12]} 20. Rfd1 {[%clk 0:01:38]}  Na4 {[%clk 0:02:11]} 21. Rac1 {[%clk 0:01:23]}  Rfe8 {[%clk 0:02:03]} 22. b3 {[%clk 0:01:23]}  Nac5 {[%clk 0:02:04]} 23. Ncd2 {[%clk 0:01:17]}  Qc6 {[%clk 0:01:55]} 24. Qc4+ {[%clk 0:01:14]}  Qe6 {[%clk 0:01:54]} 25. Qxe6+ {[%clk 0:01:10]}  Nxe6 {[%clk 0:01:55]} 26. Nc4 {[%clk 0:01:08]}  Ndc5 {[%clk 0:01:51]} 27. Kf1 {[%clk 0:01:02]}  Ne4 {[%clk 0:01:49]} 28. Nfd2 {[%clk 0:00:59]}  N6c5 {[%clk 0:01:42]} 29. b4 {[%clk 0:00:55]}  Nxd2+ {[%clk 0:01:41]} 30. Rxd2 {[%clk 0:00:53]}  Ne4 {[%clk 0:01:39]} 31. Rxd8 {[%clk 0:00:51]}  Rxd8 {[%clk 0:01:40]} 32. Ke2 {[%clk 0:00:36]}  b5 {[%clk 0:01:39]} 33. f3 {[%clk 0:00:36]}  bxc4 {[%clk 0:01:34]} 34. fxe4 {[%clk 0:00:37]}  Rd3 {[%clk 0:01:35]} 35. Bg1 {[%clk 0:00:33]}  Bf8 {[%clk 0:01:31]} 36. Bf2 {[%clk 0:00:30]}  c6 {[%clk 0:01:28]} 37. Be1 {[%clk 0:00:29]}  Rxe3+ {[%clk 0:01:26]} 38. Kxe3 {[%clk 0:00:28]}  Bh6+ {[%clk 0:01:26]} 39. Ke2 {[%clk 0:00:28]}  Bxc1 {[%clk 0:01:27]} 40. Bf2 {[%clk 0:00:26]}  a6 {[%clk 0:01:28]} 41. g4 {[%clk 0:00:26]}  Kf7 {[%clk 0:01:28]} 42. Kd1 {[%clk 0:00:23]}  Bh6 {[%clk 0:01:26]} 43. Ke2 {[%clk 0:00:22]}  Ke6 {[%clk 0:01:26]} 44. Kf3 {[%clk 0:00:22]}  Bd2 {[%clk 0:01:26]} 0-1


[Site "https://www.chess.com"]

[Event "Titled Tuesday Blitz December 13 Early 2022"]
[White "Saravana, Krishnan P."]
[Black "Jumanov, Elbek"]
[WhiteFideId "5018382"]
[BlackFideId "14202905"]
[WhiteElo "2190"]
[BlackElo "2055"]
[Result "1-0"]
[Round "03"]
[TimeControl "180+1"]
[Date "2022.12.14"]
[WhiteClock "0:00:13"]
[BlackClock "0:00:01"]

1. e4 {[%clk 0:02:57]}  c5 {[%clk 0:03:00]} 2. Nf3 {[%clk 0:02:56]}  e6 {[%clk 0:03:01]} 3. c3 {[%clk 0:02:53]}  Nf6 {[%clk 0:02:59]} 4. e5 {[%clk 0:02:53]}  Nd5 {[%clk 0:03:00]} 5. Bc4 {[%clk 0:02:53]}  d6 {[%clk 0:02:56]} 6. O-O {[%clk 0:02:51]}  Nc6 {[%clk 0:02:51]} 7. exd6 {[%clk 0:02:50]}  Bxd6 {[%clk 0:02:47]} 8. d4 {[%clk 0:02:50]}  cxd4 {[%clk 0:02:46]} 9. cxd4 {[%clk 0:02:51]}  O-O {[%clk 0:02:37]} 10. Nc3 {[%clk 0:02:50]}  Nf4 {[%clk 0:02:35]} 11. Ne4 {[%clk 0:02:41]}  Bb8 {[%clk 0:02:29]} 12. Be3 {[%clk 0:02:36]}  a6 {[%clk 0:02:19]} 13. Rc1 {[%clk 0:02:35]}  Nb4 {[%clk 0:02:16]} 14. Qb3 {[%clk 0:02:23]}  Nbd5 {[%clk 0:02:12]} 15. Rfd1 {[%clk 0:02:21]}  b5 {[%clk 0:02:08]} 16. Bf1 {[%clk 0:02:16]}  Nxe3 {[%clk 0:01:58]} 17. fxe3 {[%clk 0:02:11]}  Bb7 {[%clk 0:01:58]} 18. Ned2 {[%clk 0:01:22]}  Nd5 {[%clk 0:01:37]} 19. Re1 {[%clk 0:01:20]}  Qf6 {[%clk 0:01:34]} 20. Bd3 {[%clk 0:01:18]}  Qh6 {[%clk 0:01:29]} 21. Ne5 {[%clk 0:01:10]}  f6 {[%clk 0:01:02]} 22. Nef3 {[%clk 0:00:59]}  Re8 {[%clk 0:00:56]} 23. Nf1 {[%clk 0:00:58]}  Bd6 {[%clk 0:00:39]} 24. a4 {[%clk 0:00:40]}  b4 {[%clk 0:00:36]} 25. a5 {[%clk 0:00:39]}  g5 {[%clk 0:00:35]} 26. Bc4 {[%clk 0:00:26]}  g4 {[%clk 0:00:34]} 27. N3d2 {[%clk 0:00:25]}  Rad8 {[%clk 0:00:26]} 28. Ne4 {[%clk 0:00:25]}  Bb8 {[%clk 0:00:20]} 29. Nc5 {[%clk 0:00:23]}  Ba8 {[%clk 0:00:19]} 30. Rc2 {[%clk 0:00:21]}  f5 {[%clk 0:00:15]} 31. Rf2 {[%clk 0:00:19]}  f4 {[%clk 0:00:14]} 32. exf4 {[%clk 0:00:18]}  Nxf4 {[%clk 0:00:13]} 33. Nxe6 {[%clk 0:00:17]}  Rxe6 {[%clk 0:00:12]} 34. Bxe6+ {[%clk 0:00:16]}  Kh8 {[%clk 0:00:12]} 35. d5 {[%clk 0:00:16]}  Rf8 {[%clk 0:00:10]} 36. Qe3 {[%clk 0:00:15]}  Qh4 {[%clk 0:00:03]} 37. Qd4+ {[%clk 0:00:14]}  Qf6 {[%clk 0:00:01]} 38. Qxb4 {[%clk 0:00:13]} 1-0


[Site "https://www.chess.com"]

[Event "Titled Tuesday Blitz December 13 Early 2022"]
[White "Schut, Han"]
[Black "Walentukiewicz, Michal"]
[WhiteFideId "1005561"]
[BlackFideId "1126903"]
[WhiteElo "2024"]
[BlackElo "2028"]
[Result "1/2-1/2"]
[Round "03"]
[TimeControl "180+1"]
[Date "2022.12.14"]
[WhiteClock "0:00:13"]
[BlackClock "0:00:30"]

1. e4 {[%clk 0:03:00]}  g6 {[%clk 0:02:59]} 2. d4 {[%clk 0:03:00]}  Bg7 {[%clk 0:02:59]} 3. Nc3 {[%clk 0:03:01]}  c5 {[%clk 0:03:00]} 4. dxc5 {[%clk 0:02:51]}  Qa5 {[%clk 0:02:59]} 5. Bd2 {[%clk 0:02:40]}  Qxc5 {[%clk 0:02:59]} 6. Bd3 {[%clk 0:02:39]}  Nf6 {[%clk 0:02:58]} 7. Nf3 {[%clk 0:02:28]}  O-O {[%clk 0:02:58]} 8. O-O {[%clk 0:02:28]}  Nc6 {[%clk 0:02:57]} 9. Rb1 {[%clk 0:02:23]}  d5 {[%clk 0:02:57]} 10. exd5 {[%clk 0:02:16]}  Nxd5 {[%clk 0:02:56]} 11. Nxd5 {[%clk 0:02:17]}  Qxd5 {[%clk 0:02:57]} 12. h3 {[%clk 0:02:13]}  Qxa2 {[%clk 0:02:56]} 13. b3 {[%clk 0:01:57]}  Qa3 {[%clk 0:02:56]} 14. Qe1 {[%clk 0:01:51]}  Qd6 {[%clk 0:02:52]} 15. Be4 {[%clk 0:01:39]}  Be6 {[%clk 0:02:45]} 16. c4 {[%clk 0:01:34]}  Rfd8 {[%clk 0:02:42]} 17. Rd1 {[%clk 0:01:29]}  Qa3 {[%clk 0:02:38]} 18. Bxc6 {[%clk 0:01:16]}  bxc6 {[%clk 0:02:37]} 19. Ne5 {[%clk 0:01:17]}  Qc5 {[%clk 0:02:21]} 20. Nf3 {[%clk 0:00:46]}  a5 {[%clk 0:02:20]} 21. Ng5 {[%clk 0:00:35]}  Bf5 {[%clk 0:02:19]} 22. Be3 {[%clk 0:00:32]}  Qb4 {[%clk 0:02:17]} 23. Rxd8+ {[%clk 0:00:29]}  Rxd8 {[%clk 0:02:17]} 24. Qxb4 {[%clk 0:00:22]}  axb4 {[%clk 0:02:18]} 25. Bc5 {[%clk 0:00:23]}  Rd3 {[%clk 0:02:16]} 26. Bxb4 {[%clk 0:00:22]}  Rxb3 {[%clk 0:02:17]} 27. Bxe7 {[%clk 0:00:23]}  Bd3 {[%clk 0:02:07]} 28. Rd1 {[%clk 0:00:22]}  h6 {[%clk 0:01:29]} 29. Nf3 {[%clk 0:00:22]}  Bxc4 {[%clk 0:01:23]} 30. Rd8+ {[%clk 0:00:22]}  Kh7 {[%clk 0:01:24]} 31. Bf8 {[%clk 0:00:22]}  Bd5 {[%clk 0:01:22]} 32. Bxg7 {[%clk 0:00:20]}  Kxg7 {[%clk 0:01:23]} 33. Ne5 {[%clk 0:00:21]}  Rb1+ {[%clk 0:01:20]} 34. Kh2 {[%clk 0:00:21]}  Re1 {[%clk 0:01:19]} 35. Nd7 {[%clk 0:00:20]}  Re2 {[%clk 0:01:14]} 36. Kg3 {[%clk 0:00:20]}  h5 {[%clk 0:01:14]} 37. h4 {[%clk 0:00:20]}  Rc2 {[%clk 0:01:11]} 38. Nb6 {[%clk 0:00:19]}  Be6 {[%clk 0:01:09]} 39. Nc8 {[%clk 0:00:18]}  c5 {[%clk 0:01:09]} 40. Nd6 {[%clk 0:00:18]}  c4 {[%clk 0:01:09]} 41. Ne8+ {[%clk 0:00:17]}  Kf8 {[%clk 0:01:06]} 42. Rb8 {[%clk 0:00:15]}  Ke7 {[%clk 0:01:05]} 43. Nc7 {[%clk 0:00:15]}  Rc1 {[%clk 0:00:58]} 44. Nxe6 {[%clk 0:00:14]}  Kxe6 {[%clk 0:00:58]} 45. Rc8 {[%clk 0:00:14]}  c3 {[%clk 0:00:58]} 46. f3 {[%clk 0:00:14]}  f6 {[%clk 0:00:55]} 47. Rc6+ {[%clk 0:00:12]}  Ke5 {[%clk 0:00:55]} 48. Rc8 {[%clk 0:00:12]}  Kd4 {[%clk 0:00:54]} 49. Rd8+ {[%clk 0:00:12]}  Kc4 {[%clk 0:00:53]} 50. Rc8+ {[%clk 0:00:13]}  Kb3 {[%clk 0:00:54]} 51. Rb8+ {[%clk 0:00:13]}  Ka2 {[%clk 0:00:53]} 52. Ra8+ {[%clk 0:00:13]}  Kb1 {[%clk 0:00:54]} 53. Rb8+ {[%clk 0:00:14]}  Kc2 {[%clk 0:00:54]} 54. Rf8 {[%clk 0:00:13]}  Kd1 {[%clk 0:00:53]} 55. Rxf6 {[%clk 0:00:11]}  c2 {[%clk 0:00:54]} 56. Rd6+ {[%clk 0:00:11]}  Ke1 {[%clk 0:00:54]} 57. Re6+ {[%clk 0:00:12]}  Kd2 {[%clk 0:00:53]} 58. Rd6+ {[%clk 0:00:11]}  Kc3 {[%clk 0:00:53]} 59. Rc6+ {[%clk 0:00:12]}  Kd4 {[%clk 0:00:53]} 60. Rc8 {[%clk 0:00:12]}  Kd3 {[%clk 0:00:47]} 61. Rd8+ {[%clk 0:00:12]}  Kc4 {[%clk 0:00:47]} 62. Rc8+ {[%clk 0:00:12]}  Kd4 {[%clk 0:00:45]} 63. Rd8+ {[%clk 0:00:12]}  Ke5 {[%clk 0:00:45]} 64. Re8+ {[%clk 0:00:12]}  Kf6 {[%clk 0:00:45]} 65. Rc8 {[%clk 0:00:12]}  Kf7 {[%clk 0:00:44]} 66. Rc7+ {[%clk 0:00:12]}  Ke6 {[%clk 0:00:45]} 67. Rc3 {[%clk 0:00:12]}  Ke5 {[%clk 0:00:40]} 68. Rc8 {[%clk 0:00:11]}  Kd6 {[%clk 0:00:40]} 69. Rc3 {[%clk 0:00:11]}  Kd5 {[%clk 0:00:40]} 70. Rc8 {[%clk 0:00:11]}  Ke6 {[%clk 0:00:32]} 71. Rc3 {[%clk 0:00:11]}  Kf6 {[%clk 0:00:31]} 72. Rc8 {[%clk 0:00:11]}  Kg7 {[%clk 0:00:30]} 73. Rc7+ {[%clk 0:00:11]}  Kh6 {[%clk 0:00:30]} 74. Rc6 {[%clk 0:00:11]}  Kh7 {[%clk 0:00:30]} 75. Rc7+ {[%clk 0:00:12]}  Kh6 {[%clk 0:00:31]} 76. Rc6 {[%clk 0:00:12]}  Kg7 {[%clk 0:00:30]} 77. Rc7+ {[%clk 0:00:13]}  Kf6 {[%clk 0:00:31]} 78. Rc6+ {[%clk 0:00:13]}  Ke5 {[%clk 0:00:30]} 79. Rc8 {[%clk 0:00:13]}  Ke6 {[%clk 0:00:30]} 80. Rc3 {[%clk 0:00:13]} 1/2-1/2


[Site "https://www.chess.com"]

[Event "Titled Tuesday Blitz December 13 Early 2022"]
[White "Seifert, Henryk"]
[Black "Forgacs, Attila Jr."]
[WhiteFideId "1100963"]
[BlackFideId "773654"]
[WhiteElo "2120"]
[BlackElo "2168"]
[Result "0-1"]
[Round "03"]
[TimeControl "180+1"]
[Date "2022.12.14"]
[WhiteClock "0:00:04"]
[BlackClock "0:01:37"]

1. e4 {[%clk 0:03:00]}  e5 {[%clk 0:03:00]} 2. Nf3 {[%clk 0:03:00]}  Nc6 {[%clk 0:02:59]} 3. Nc3 {[%clk 0:03:00]}  Nf6 {[%clk 0:02:59]} 4. Bb5 {[%clk 0:02:59]}  Bd6 {[%clk 0:02:59]} 5. h3 {[%clk 0:02:56]}  O-O {[%clk 0:02:59]} 6. O-O {[%clk 0:02:56]}  Re8 {[%clk 0:02:58]} 7. d3 {[%clk 0:02:55]}  h6 {[%clk 0:02:58]} 8. Be3 {[%clk 0:02:47]}  Bf8 {[%clk 0:02:56]} 9. a3 {[%clk 0:02:29]}  a6 {[%clk 0:02:56]} 10. Bc4 {[%clk 0:02:29]}  d6 {[%clk 0:02:55]} 11. Qd2 {[%clk 0:02:23]}  Be6 {[%clk 0:02:55]} 12. Bxe6 {[%clk 0:02:07]}  fxe6 {[%clk 0:02:56]} 13. d4 {[%clk 0:02:04]}  exd4 {[%clk 0:02:54]} 14. Nxd4 {[%clk 0:02:03]}  Ne5 {[%clk 0:02:47]} 15. Qe2 {[%clk 0:01:59]}  c5 {[%clk 0:02:42]} 16. Nf3 {[%clk 0:01:56]}  Nxf3+ {[%clk 0:02:24]} 17. Qxf3 {[%clk 0:01:55]}  Qc7 {[%clk 0:02:25]} 18. Rad1 {[%clk 0:01:46]}  Qf7 {[%clk 0:02:14]} 19. Bf4 {[%clk 0:01:42]}  Rad8 {[%clk 0:02:05]} 20. e5 {[%clk 0:01:24]}  Nh5 {[%clk 0:01:59]} 21. Ne2 {[%clk 0:00:26]}  d5 {[%clk 0:01:49]} 22. g4 {[%clk 0:00:21]}  Nxf4 {[%clk 0:01:49]} 23. Qxf4 {[%clk 0:00:20]}  b5 {[%clk 0:01:43]} 24. Qxf7+ {[%clk 0:00:18]}  Kxf7 {[%clk 0:01:44]} 25. f4 {[%clk 0:00:17]}  g6 {[%clk 0:01:39]} 26. c3 {[%clk 0:00:16]}  Bg7 {[%clk 0:01:38]} 27. Kg2 {[%clk 0:00:16]}  Ke7 {[%clk 0:01:38]} 28. Rf3 {[%clk 0:00:12]}  Rf8 {[%clk 0:01:38]} 29. Rdf1 {[%clk 0:00:11]}  g5 {[%clk 0:01:35]} 30. fxg5 {[%clk 0:00:06]}  hxg5 {[%clk 0:01:35]} 31. Rxf8 {[%clk 0:00:04]}  Rxf8 {[%clk 0:01:36]} 32. Rxf8 {[%clk 0:00:04]}  Kxf8 {[%clk 0:01:37]} 0-1


[Site "https://www.chess.com"]

[Event "Titled Tuesday Blitz December 13 Early 2022"]
[White "Skuhala, Barbara"]
[Black "Kozlov, Gennady"]
[WhiteFideId "14605465"]
[BlackFideId "4191668"]
[WhiteElo "2137"]
[BlackElo "2356"]
[Result "0-1"]
[Round "03"]
[TimeControl "180+1"]
[Date "2022.12.14"]
[WhiteClock "0:00:07"]
[BlackClock "0:00:33"]

1. e4 {[%clk 0:03:00]}  e6 {[%clk 0:02:50]} 2. d4 {[%clk 0:03:00]}  d5 {[%clk 0:02:50]} 3. Nc3 {[%clk 0:02:58]}  Nf6 {[%clk 0:02:50]} 4. Bg5 {[%clk 0:02:57]}  Be7 {[%clk 0:02:49]} 5. e5 {[%clk 0:02:55]}  Nfd7 {[%clk 0:02:50]} 6. h4 {[%clk 0:02:55]}  Nc6 {[%clk 0:02:50]} 7. Bxe7 {[%clk 0:02:52]}  Qxe7 {[%clk 0:02:48]} 8. Qg4 {[%clk 0:02:51]}  g6 {[%clk 0:02:42]} 9. O-O-O {[%clk 0:02:50]}  h5 {[%clk 0:02:41]} 10. Qe2 {[%clk 0:02:43]}  Nb6 {[%clk 0:02:26]} 11. f4 {[%clk 0:02:41]}  Bd7 {[%clk 0:02:26]} 12. Nf3 {[%clk 0:02:38]}  O-O-O {[%clk 0:02:26]} 13. Kb1 {[%clk 0:02:37]}  Na5 {[%clk 0:02:26]} 14. Qe1 {[%clk 0:02:32]}  Nac4 {[%clk 0:02:25]} 15. Bxc4 {[%clk 0:02:32]}  Nxc4 {[%clk 0:02:24]} 16. b3 {[%clk 0:02:32]}  Na3+ {[%clk 0:02:11]} 17. Kb2 {[%clk 0:02:32]}  Kb8 {[%clk 0:02:07]} 18. Nb1 {[%clk 0:02:27]}  Nxb1 {[%clk 0:02:04]} 19. Kxb1 {[%clk 0:02:26]}  c5 {[%clk 0:02:05]} 20. c3 {[%clk 0:02:25]}  Rc8 {[%clk 0:02:04]} 21. dxc5 {[%clk 0:02:24]}  Qxc5 {[%clk 0:02:03]} 22. Kb2 {[%clk 0:02:22]}  Rc6 {[%clk 0:02:02]} 23. Nd4 {[%clk 0:02:23]}  Ra6 {[%clk 0:02:01]} 24. Qd2 {[%clk 0:02:18]}  Rc8 {[%clk 0:01:59]} 25. Rc1 {[%clk 0:02:15]}  b5 {[%clk 0:01:54]} 26. Rc2 {[%clk 0:02:10]}  Qa3+ {[%clk 0:01:52]} 27. Kb1 {[%clk 0:02:09]}  Rb6 {[%clk 0:01:51]} 28. Rhc1 {[%clk 0:02:08]}  a5 {[%clk 0:01:50]} 29. Qe2 {[%clk 0:02:04]}  Kb7 {[%clk 0:01:48]} 30. g4 {[%clk 0:02:04]}  hxg4 {[%clk 0:01:44]} 31. Qxg4 {[%clk 0:02:03]}  Qe7 {[%clk 0:01:33]} 32. h5 {[%clk 0:02:03]}  gxh5 {[%clk 0:01:32]} 33. Qxh5 {[%clk 0:02:03]}  Be8 {[%clk 0:01:31]} 34. Qf3 {[%clk 0:02:00]}  Ka7 {[%clk 0:01:28]} 35. f5 {[%clk 0:01:59]}  Qc7 {[%clk 0:01:24]} 36. fxe6 {[%clk 0:01:57]}  fxe6 {[%clk 0:01:23]} 37. Qe3 {[%clk 0:01:53]}  Bd7 {[%clk 0:01:21]} 38. Rg1 {[%clk 0:01:39]}  Ka6 {[%clk 0:01:18]} 39. Rg7 {[%clk 0:01:38]}  Rf8 {[%clk 0:01:13]} 40. Qd3 {[%clk 0:01:38]}  Rb7 {[%clk 0:01:01]} 41. a4 {[%clk 0:01:36]}  Qc5 {[%clk 0:00:57]} 42. axb5+ {[%clk 0:01:25]}  Bxb5 {[%clk 0:00:56]} 43. Nxb5 {[%clk 0:01:25]}  Qxb5 {[%clk 0:00:56]} 44. Qxb5+ {[%clk 0:01:24]}  Rxb5 {[%clk 0:00:56]} 45. Ka2 {[%clk 0:01:21]}  Rf5 {[%clk 0:00:50]} 46. c4 {[%clk 0:01:11]}  Rc5 {[%clk 0:00:48]} 47. Rd7 {[%clk 0:01:01]}  Rxe5 {[%clk 0:00:46]} 48. Rd6+ {[%clk 0:01:01]}  Kb7 {[%clk 0:00:46]} 49. Ka3 {[%clk 0:00:59]}  Rc6 {[%clk 0:00:44]} 50. Rd7+ {[%clk 0:00:56]}  Kb6 {[%clk 0:00:43]} 51. Rd8 {[%clk 0:00:39]}  Re3 {[%clk 0:00:43]} 52. Ka4 {[%clk 0:00:32]}  Re4 {[%clk 0:00:42]} 53. Rb8+ {[%clk 0:00:30]}  Kc7 {[%clk 0:00:42]} 54. Re8 {[%clk 0:00:26]}  dxc4 {[%clk 0:00:42]} 55. bxc4 {[%clk 0:00:26]}  Rcxc4+ {[%clk 0:00:41]} 56. Rxc4+ {[%clk 0:00:24]}  Rxc4+ {[%clk 0:00:42]} 57. Kxa5 {[%clk 0:00:24]}  Kd7 {[%clk 0:00:41]} 58. Rh8 {[%clk 0:00:24]}  Kd6 {[%clk 0:00:40]} 59. Kb5 {[%clk 0:00:22]}  Rc1 {[%clk 0:00:40]} 60. Kb4 {[%clk 0:00:22]}  Kd5 {[%clk 0:00:39]} 61. Kb3 {[%clk 0:00:19]}  e5 {[%clk 0:00:38]} 62. Kb2 {[%clk 0:00:19]}  Rc7 {[%clk 0:00:37]} 63. Rd8+ {[%clk 0:00:19]}  Ke4 {[%clk 0:00:37]} 64. Rf8 {[%clk 0:00:17]}  Kd3 {[%clk 0:00:37]} 65. Rd8+ {[%clk 0:00:17]}  Ke3 {[%clk 0:00:37]} 66. Re8 {[%clk 0:00:15]}  e4 {[%clk 0:00:37]} 67. Rf8 {[%clk 0:00:13]}  Kd2 {[%clk 0:00:36]} 68. Rd8+ {[%clk 0:00:13]}  Ke2 {[%clk 0:00:37]} 69. Rf8 {[%clk 0:00:11]}  e3 {[%clk 0:00:37]} 70. Rf6 {[%clk 0:00:11]}  Kd2 {[%clk 0:00:36]} 71. Rd6+ {[%clk 0:00:11]}  Ke1 {[%clk 0:00:36]} 72. Rf6 {[%clk 0:00:10]}  e2 {[%clk 0:00:36]} 73. Rf8 {[%clk 0:00:10]}  Rc5 {[%clk 0:00:33]} 74. Rf6 {[%clk 0:00:07]}  Kd2 {[%clk 0:00:33]} 75. Rd6+ {[%clk 0:00:07]}  Ke3 {[%clk 0:00:33]} 0-1


[Site "https://www.chess.com"]

[Event "Titled Tuesday Blitz December 13 Early 2022"]
[White "Sovetbekova, Nurai"]
[Black "Derjabin, Ilja"]
[WhiteFideId "13801910"]
[BlackFideId "14104768"]
[WhiteElo "1925"]
[BlackElo "2309"]
[Result "1-0"]
[Round "03"]
[TimeControl "180+1"]
[Date "2022.12.14"]
[WhiteClock "0:00:04"]
[BlackClock "0:00:04"]

1. d4 {[%clk 0:03:00]}  Nf6 {[%clk 0:02:57]} 2. c4 {[%clk 0:03:00]}  c5 {[%clk 0:02:57]} 3. d5 {[%clk 0:02:59]}  b5 {[%clk 0:02:58]} 4. cxb5 {[%clk 0:03:00]}  a6 {[%clk 0:02:57]} 5. e3 {[%clk 0:02:59]}  d6 {[%clk 0:02:56]} 6. Nc3 {[%clk 0:02:56]}  g6 {[%clk 0:02:56]} 7. Qc2 {[%clk 0:02:40]}  Bg7 {[%clk 0:02:54]} 8. Nf3 {[%clk 0:02:39]}  O-O {[%clk 0:02:53]} 9. bxa6 {[%clk 0:02:36]}  Nxa6 {[%clk 0:02:52]} 10. Be2 {[%clk 0:02:28]}  Nb4 {[%clk 0:02:48]} 11. Qd1 {[%clk 0:02:27]}  Bf5 {[%clk 0:02:48]} 12. O-O {[%clk 0:02:26]}  Bc2 {[%clk 0:02:30]} 13. Qd2 {[%clk 0:02:22]}  Ne4 {[%clk 0:02:05]} 14. Nxe4 {[%clk 0:02:19]}  Bxe4 {[%clk 0:02:06]} 15. Bc4 {[%clk 0:01:46]}  Bxf3 {[%clk 0:01:48]} 16. gxf3 {[%clk 0:01:47]}  Qc8 {[%clk 0:01:46]} 17. Kg2 {[%clk 0:01:40]}  f5 {[%clk 0:01:37]} 18. f4 {[%clk 0:01:30]}  Qb7 {[%clk 0:01:30]} 19. a3 {[%clk 0:01:27]}  Rfb8 {[%clk 0:01:30]} 20. Rb1 {[%clk 0:01:22]}  Na6 {[%clk 0:01:30]} 21. b3 {[%clk 0:01:18]}  Nc7 {[%clk 0:01:26]} 22. Bb2 {[%clk 0:01:17]}  Bxb2 {[%clk 0:01:23]} 23. Qxb2 {[%clk 0:00:56]}  e6 {[%clk 0:01:22]} 24. Qf6 {[%clk 0:00:50]}  exd5 {[%clk 0:01:19]} 25. Be2 {[%clk 0:00:49]}  Qc6 {[%clk 0:01:14]} 26. a4 {[%clk 0:00:33]}  Rf8 {[%clk 0:01:12]} 27. Qb2 {[%clk 0:00:29]}  c4 {[%clk 0:00:54]} 28. Bf3 {[%clk 0:00:21]}  c3 {[%clk 0:00:50]} 29. Qc2 {[%clk 0:00:21]}  Rfc8 {[%clk 0:00:38]} 30. Rfd1 {[%clk 0:00:19]}  Ra5 {[%clk 0:00:33]} 31. Rbc1 {[%clk 0:00:17]}  Kf8 {[%clk 0:00:21]} 32. Qxc3 {[%clk 0:00:12]}  Qxc3 {[%clk 0:00:21]} 33. Rxc3 {[%clk 0:00:13]}  Rc5 {[%clk 0:00:22]} 34. Rdc1 {[%clk 0:00:13]}  Na6 {[%clk 0:00:19]} 35. Rxc5 {[%clk 0:00:12]}  dxc5 {[%clk 0:00:13]} 36. Bxd5 {[%clk 0:00:12]}  Rb8 {[%clk 0:00:13]} 37. Bc4 {[%clk 0:00:12]}  Nb4 {[%clk 0:00:13]} 38. Rd1 {[%clk 0:00:12]}  Ke7 {[%clk 0:00:14]} 39. Kf3 {[%clk 0:00:11]}  Rb7 {[%clk 0:00:13]} 40. Ke2 {[%clk 0:00:10]}  Ra7 {[%clk 0:00:12]} 41. Ra1 {[%clk 0:00:10]}  Rb7 {[%clk 0:00:10]} 42. Rc1 {[%clk 0:00:09]}  Kd6 {[%clk 0:00:10]} 43. Bb5 {[%clk 0:00:09]}  Ra7 {[%clk 0:00:09]} 44. Rd1+ {[%clk 0:00:09]}  Ke6 {[%clk 0:00:08]} 45. Bc4+ {[%clk 0:00:09]}  Ke7 {[%clk 0:00:06]} 46. Bb5 {[%clk 0:00:08]}  Rb7 {[%clk 0:00:05]} 47. Kd2 {[%clk 0:00:06]}  Ke6 {[%clk 0:00:05]} 48. Kc3 {[%clk 0:00:06]}  h6 {[%clk 0:00:05]} 49. Kc4 {[%clk 0:00:06]}  Rc7 {[%clk 0:00:04]} 50. Rd8 {[%clk 0:00:06]}  g5 {[%clk 0:00:03]} 51. Re8+ {[%clk 0:00:06]}  Kf7 {[%clk 0:00:03]} 52. Rh8 {[%clk 0:00:06]}  gxf4 {[%clk 0:00:03]} 53. Rxh6 {[%clk 0:00:05]}  Kg7 {[%clk 0:00:04]} 54. Re6 {[%clk 0:00:05]}  fxe3 {[%clk 0:00:05]} 55. Rxe3 {[%clk 0:00:05]}  Nc2 {[%clk 0:00:05]} 56. Rg3+ {[%clk 0:00:04]}  Kf6 {[%clk 0:00:04]} 57. Rh3 {[%clk 0:00:04]}  Nd4 {[%clk 0:00:05]} 58. Rh6+ {[%clk 0:00:04]}  Kg5 {[%clk 0:00:05]} 59. Rh8 {[%clk 0:00:04]}  Kf4 {[%clk 0:00:04]} 60. a5 {[%clk 0:00:04]} 1-0


[Site "https://www.chess.com"]

[Event "Titled Tuesday Blitz December 13 Early 2022"]
[White "Stijve, Theo"]
[Black "Muminova, Nafisa"]
[WhiteFideId "1331132"]
[BlackFideId "14201526"]
[WhiteElo "2256"]
[BlackElo "2258"]
[Result "1-0"]
[Round "03"]
[TimeControl "180+1"]
[Date "2022.12.14"]
[WhiteClock "0:01:01"]
[BlackClock "0:00:26"]

1. e4 {[%clk 0:02:57]}  e6 {[%clk 0:02:59]} 2. d4 {[%clk 0:02:57]}  d5 {[%clk 0:02:59]} 3. exd5 {[%clk 0:02:57]}  exd5 {[%clk 0:02:57]} 4. Nf3 {[%clk 0:02:57]}  Bd6 {[%clk 0:02:56]} 5. Bd3 {[%clk 0:02:57]}  Bg4 {[%clk 0:02:54]} 6. O-O {[%clk 0:02:56]}  Ne7 {[%clk 0:02:54]} 7. Bg5 {[%clk 0:02:53]}  f6 {[%clk 0:02:53]} 8. Bh4 {[%clk 0:02:53]}  Nbc6 {[%clk 0:02:53]} 9. c3 {[%clk 0:02:51]}  Qd7 {[%clk 0:02:51]} 10. Nbd2 {[%clk 0:02:51]}  O-O-O {[%clk 0:02:51]} 11. b4 {[%clk 0:02:51]}  Rde8 {[%clk 0:02:49]} 12. a4 {[%clk 0:02:47]}  h5 {[%clk 0:02:43]} 13. a5 {[%clk 0:02:44]}  g5 {[%clk 0:02:43]} 14. Bg3 {[%clk 0:02:44]}  h4 {[%clk 0:02:40]} 15. Bxd6 {[%clk 0:02:44]}  Qxd6 {[%clk 0:02:39]} 16. h3 {[%clk 0:02:38]}  Bh5 {[%clk 0:02:32]} 17. b5 {[%clk 0:02:35]}  Nd8 {[%clk 0:02:23]} 18. c4 {[%clk 0:02:27]}  dxc4 {[%clk 0:01:58]} 19. Nxc4 {[%clk 0:02:20]}  Qd7 {[%clk 0:01:50]} 20. b6 {[%clk 0:02:17]}  a6 {[%clk 0:01:47]} 21. bxc7 {[%clk 0:02:15]}  Qxc7 {[%clk 0:01:46]} 22. Qc2 {[%clk 0:01:48]}  Bxf3 {[%clk 0:01:31]} 23. Nd6+ {[%clk 0:01:47]}  Kd7 {[%clk 0:01:26]} 24. Qxc7+ {[%clk 0:01:42]}  Kxc7 {[%clk 0:01:26]} 25. Nxe8+ {[%clk 0:01:43]}  Rxe8 {[%clk 0:01:25]} 26. gxf3 {[%clk 0:01:43]}  Ndc6 {[%clk 0:01:23]} 27. Be4 {[%clk 0:01:35]}  Rd8 {[%clk 0:01:19]} 28. d5 {[%clk 0:01:27]}  Nxd5 {[%clk 0:01:18]} 29. Rfd1 {[%clk 0:01:27]}  Nc3 {[%clk 0:00:54]} 30. Rxd8 {[%clk 0:01:21]}  Kxd8 {[%clk 0:00:54]} 31. Bxc6 {[%clk 0:01:20]}  bxc6 {[%clk 0:00:54]} 32. f4 {[%clk 0:01:16]}  gxf4 {[%clk 0:00:51]} 33. Kg2 {[%clk 0:01:16]}  Nd5 {[%clk 0:00:47]} 34. Kf3 {[%clk 0:01:16]}  Kd7 {[%clk 0:00:45]} 35. Kg4 {[%clk 0:01:15]}  Ke6 {[%clk 0:00:40]} 36. Re1+ {[%clk 0:01:13]}  Kd6 {[%clk 0:00:37]} 37. Kxh4 {[%clk 0:01:12]}  c5 {[%clk 0:00:37]} 38. Kg4 {[%clk 0:01:11]}  c4 {[%clk 0:00:37]} 39. h4 {[%clk 0:01:12]}  c3 {[%clk 0:00:37]} 40. h5 {[%clk 0:01:12]}  c2 {[%clk 0:00:29]} 41. h6 {[%clk 0:01:12]}  Nc3 {[%clk 0:00:26]} 42. Rc1 {[%clk 0:01:01]} 1-0


[Site "https://www.chess.com"]